[Event "*** Titled Tuesday Blitz"]
[Site "Chess.com"]
[Date "2020.02.04"]
[Round "7"]
[White "Indianlad"]
[Black "Firouzja2003"]
[Result "0-1"]
[WhiteElo "2940"]
[BlackElo "3149"]
[TimeControl "180+2"]
[EndTime "14:28:22 PST"]
[Termination "Firouzja2003 won by resignation"]

1. e4 {[%clk 0:03:01.9]} 1... c5 {[%clk 0:02:58.7]} 2. Nc3 {[%clk 0:03:03.2]}
2... d6 {[%clk 0:02:59.7]} 3. f4 {[%clk 0:03:04.1]} 3... g6 {[%clk 0:03:00.7]}
4. Nf3 {[%clk 0:03:05.8]} 4... Bg7 {[%clk 0:03:02.6]} 5. Bc4 {[%clk 0:03:07.3]}
5... Nc6 {[%clk 0:03:02.4]} 6. O-O {[%clk 0:03:08.9]} 6... e6 {[%clk 0:03:02.2]}
7. d4 {[%clk 0:03:10.4]} 7... cxd4 {[%clk 0:03:02.6]} 8. Nb5 {[%clk 0:03:11.5]}
8... Nge7 {[%clk 0:03:04.1]} 9. Bb3 {[%clk 0:03:12.9]} 9... O-O {[%clk
0:02:59.4]} 10. Nbxd4 {[%clk 0:03:14.3]} 10... Nxd4 {[%clk 0:03:01.3]} 11. Nxd4
{[%clk 0:03:15.2]} 11... Nc6 {[%clk 0:02:53.8]} 12. Be3 {[%clk 0:03:13.6]} 12...
a6 {[%clk 0:02:54]} 13. c3 {[%clk 0:03:14.5]} 13... Bd7 {[%clk 0:02:54.9]} 14.
Qd2 {[%clk 0:03:04.4]} 14... Na5 {[%clk 0:02:53.8]} 15. f5 {[%clk 0:03:05.3]}
15... Nxb3 {[%clk 0:02:52.6]} 16. axb3 {[%clk 0:03:04.3]} 16... e5 {[%clk
0:02:46.8]} 17. Ne2 {[%clk 0:02:37.5]} 17... Bc6 {[%clk 0:02:42.8]} 18. Ng3
{[%clk 0:02:38.5]} 18... d5 {[%clk 0:02:44]} 19. f6 {[%clk 0:02:37.4]} 19... Bh8
{[%clk 0:02:44.7]} 20. exd5 {[%clk 0:02:35.8]} 20... Qxd5 {[%clk 0:02:45.2]} 21.
Qxd5 {[%clk 0:02:37.1]} 21... Bxd5 {[%clk 0:02:46.6]} 22. c4 {[%clk 0:02:39]}
22... Bc6 {[%clk 0:02:48]} 23. Bc5 {[%clk 0:02:33.1]} 23... Rfe8 {[%clk
0:02:46]} 24. Rad1 {[%clk 0:02:29.3]} 24... Re6 {[%clk 0:02:40]} 25. Rd6 {[%clk
0:02:25]} 25... Rae8 {[%clk 0:02:35.9]} 26. h4 {[%clk 0:02:09.1]} 26... Rxd6
{[%clk 0:02:33.7]} 27. Bxd6 {[%clk 0:02:10.4]} 27... Re6 {[%clk 0:02:35.6]} 28.
Be7 {[%clk 0:02:11.9]} 28... h5 {[%clk 0:02:34.4]} 29. Kf2 {[%clk 0:02:01.7]}
29... Bg7 {[%clk 0:02:35.2]} 30. Ke3 {[%clk 0:01:56.3]} 30... Bxg2 {[%clk
0:02:26.8]} 31. Rd1 {[%clk 0:01:55.2]} 31... Bxf6 {[%clk 0:02:25]} 32. Bxf6
{[%clk 0:01:54.5]} 32... Rxf6 {[%clk 0:02:26.9]} 33. Ne4 {[%clk 0:01:56.2]}
33... Rf3+ {[%clk 0:02:25.3]} 34. Ke2 {[%clk 0:01:57.7]} 34... Rxb3 {[%clk
0:02:25.7]} 0-1

[Event "*** Titled Tuesday Blitz"]
[Site "Chess.com"]
[Date "2020.02.04"]
[Round "7"]
[White "Keaton87"]
[Black "AdrianaNikolova"]
[Result "1-0"]
[WhiteElo "2557"]
[BlackElo "2396"]
[TimeControl "180+2"]
[EndTime "14:28:34 PST"]
[Termination "Keaton87 won by checkmate"]

1. d4 {[%clk 0:03:01.9]} 1... d5 {[%clk 0:03:00]} 2. Bg5 {[%clk 0:03:02.5]} 2...
c5 {[%clk 0:02:58.4]} 3. dxc5 {[%clk 0:03:03.2]} 3... Nc6 {[%clk 0:02:54.5]} 4.
e4 {[%clk 0:03:03]} 4... dxe4 {[%clk 0:02:51.8]} 5. Qxd8+ {[%clk 0:03:03.4]}
5... Nxd8 {[%clk 0:02:53.7]} 6. Nc3 {[%clk 0:03:03.5]} 6... f6 {[%clk 0:02:52]}
7. Be3 {[%clk 0:03:03.9]} 7... Bf5 {[%clk 0:02:47.4]} 8. O-O-O {[%clk
0:02:55.2]} 8... Bg6 {[%clk 0:02:36]} 9. Nb5 {[%clk 0:02:48.4]} 9... Kf7 {[%clk
0:02:31.5]} 10. Rd7 {[%clk 0:02:42.2]} 10... Bf5 {[%clk 0:02:24.8]} 11. Bc4+
{[%clk 0:02:24.4]} 11... Kg6 {[%clk 0:02:25.5]} 12. Ne2 {[%clk 0:02:18.1]} 12...
Bxd7 {[%clk 0:01:59.4]} 13. Nf4+ {[%clk 0:02:18.9]} 13... Kf5 {[%clk 0:01:21.5]}
14. Rd1 {[%clk 0:02:18.2]} 14... Bxb5 {[%clk 0:00:33.6]} 15. Be6+ {[%clk
0:02:18.8]} 15... Nxe6 {[%clk 0:00:31]} 16. Rd5+ {[%clk 0:02:19.8]} 16... Kg4
{[%clk 0:00:32.4]} 17. h3+ {[%clk 0:02:20.8]} 17... Kh4 {[%clk 0:00:33.2]} 18.
g3# {[%clk 0:02:22.1]} 1-0

[Event "*** Titled Tuesday Blitz"]
[Site "Chess.com"]
[Date "2020.02.04"]
[Round "7"]
[White "riconaipe"]
[Black "TigrVShlyape"]
[Result "0-1"]
[WhiteElo "2564"]
[BlackElo "2843"]
[TimeControl "180+2"]
[EndTime "14:28:43 PST"]
[Termination "TigrVShlyape won by resignation"]

1. d4 {[%clk 0:02:52.7]} 1... Nf6 {[%clk 0:03:00.2]} 2. c4 {[%clk 0:02:53.3]}
2... e6 {[%clk 0:03:01]} 3. Nf3 {[%clk 0:02:52.7]} 3... b6 {[%clk 0:03:01.9]} 4.
g3 {[%clk 0:02:52.2]} 4... a5 {[%clk 0:03:01.3]} 5. Bg2 {[%clk 0:02:52.7]} 5...
Ba6 {[%clk 0:03:02.4]} 6. Nbd2 {[%clk 0:02:53.4]} 6... c6 {[%clk 0:03:02.8]} 7.
O-O {[%clk 0:02:53.6]} 7... d5 {[%clk 0:03:03.4]} 8. b3 {[%clk 0:02:53.2]} 8...
Nbd7 {[%clk 0:03:03.6]} 9. Bb2 {[%clk 0:02:54]} 9... Bb4 {[%clk 0:03:02.9]} 10.
Rc1 {[%clk 0:02:52.7]} 10... O-O {[%clk 0:03:02.1]} 11. a3 {[%clk 0:02:53.7]}
11... Be7 {[%clk 0:02:59.8]} 12. Ne5 {[%clk 0:02:54.3]} 12... Nxe5 {[%clk
0:02:57.5]} 13. dxe5 {[%clk 0:02:55.3]} 13... Nd7 {[%clk 0:02:58]} 14. Re1
{[%clk 0:02:54.2]} 14... Rc8 {[%clk 0:02:48.1]} 15. e4 {[%clk 0:02:55]} 15...
dxc4 {[%clk 0:02:47.5]} 16. Nxc4 {[%clk 0:02:55.4]} 16... Bxc4 {[%clk
0:02:47.9]} 17. Rxc4 {[%clk 0:02:52.7]} 17... Qc7 {[%clk 0:02:44.6]} 18. f4
{[%clk 0:02:40.5]} 18... b5 {[%clk 0:02:45]} 19. Rc2 {[%clk 0:02:36]} 19... Nc5
{[%clk 0:02:42.7]} 20. Rd2 {[%clk 0:02:14.8]} 20... Rfd8 {[%clk 0:02:40.2]} 21.
Bd4 {[%clk 0:02:16]} 21... a4 {[%clk 0:02:34.9]} 22. bxa4 {[%clk 0:02:16.1]}
22... Nxa4 {[%clk 0:02:35]} 23. f5 {[%clk 0:02:13.8]} 23... Rxd4 {[%clk
0:02:15]} 24. Rxd4 {[%clk 0:02:14]} 24... Bc5 {[%clk 0:02:16.5]} 25. Kh1 {[%clk
0:02:08.1]} 25... Nb2 {[%clk 0:02:14.1]} 26. Rd7 {[%clk 0:01:29.2]} 26... Nxd1
{[%clk 0:02:13.7]} 27. Rexd1 {[%clk 0:01:25.4]} 27... Qxe5 {[%clk 0:02:08]} 28.
Rd8+ {[%clk 0:01:26]} 28... Rxd8 {[%clk 0:02:09]} 29. Rxd8+ {[%clk 0:01:27.9]}
29... Bf8 {[%clk 0:02:09.9]} 0-1

[Event "*** Titled Tuesday Blitz"]
[Site "Chess.com"]
[Date "2020.02.04"]
[Round "7"]
[White "Galiev_Azat"]
[Black "djano"]
[Result "0-1"]
[WhiteElo "2243"]
[BlackElo "2360"]
[TimeControl "180+2"]
[EndTime "14:28:58 PST"]
[Termination "djano won on time"]

1. d4 {[%clk 0:03:01.3]} 1... Nf6 {[%clk 0:02:58.1]} 2. Bf4 {[%clk 0:03:01.4]}
2... c5 {[%clk 0:02:57.2]} 3. e3 {[%clk 0:03:01.9]} 3... Qb6 {[%clk 0:02:57.8]}
4. Nc3 {[%clk 0:03:03]} 4... e6 {[%clk 0:02:57.1]} 5. a3 {[%clk 0:02:17.2]} 5...
Nc6 {[%clk 0:02:52.2]} 6. Nb5 {[%clk 0:02:02.5]} 6... Nd5 {[%clk 0:02:52.5]} 7.
Bd6 {[%clk 0:01:45.3]} 7... a6 {[%clk 0:02:50.2]} 8. dxc5 {[%clk 0:01:36.3]}
8... Qd8 {[%clk 0:02:51.1]} 9. Qxd5 {[%clk 0:01:24]} 9... axb5 {[%clk 0:02:45]}
10. Qd2 {[%clk 0:01:17.8]} 10... Qf6 {[%clk 0:02:40.1]} 11. c3 {[%clk
0:01:11.7]} 11... Na5 {[%clk 0:02:39.7]} 12. Rd1 {[%clk 0:01:06.4]} 12... Nc4
{[%clk 0:02:38.8]} 13. Bxc4 {[%clk 0:01:06.2]} 13... bxc4 {[%clk 0:02:40.7]} 14.
Nf3 {[%clk 0:01:06]} 14... Ra6 {[%clk 0:02:31]} 15. Be5 {[%clk 0:01:05.3]} 15...
Qg6 {[%clk 0:02:28.6]} 16. O-O {[%clk 0:00:48.1]} 16... Bxc5 {[%clk 0:02:28.9]}
0-1

[Event "*** Titled Tuesday Blitz"]
[Site "Chess.com"]
[Date "2020.02.04"]
[Round "7"]
[White "Sajkochess"]
[Black "secretsuperstar7"]
[Result "1-0"]
[WhiteElo "2304"]
[BlackElo "2212"]
[TimeControl "180+2"]
[EndTime "14:29:00 PST"]
[Termination "Sajkochess won by resignation"]

1. e4 {[%clk 0:02:57]} 1... c5 {[%clk 0:03:00.2]} 2. c3 {[%clk 0:02:57.7]} 2...
Nf6 {[%clk 0:02:58.6]} 3. e5 {[%clk 0:02:58.9]} 3... Nd5 {[%clk 0:02:59.2]} 4.
d4 {[%clk 0:03:00.5]} 4... cxd4 {[%clk 0:02:59.6]} 5. cxd4 {[%clk 0:03:02.4]}
5... Nc6 {[%clk 0:02:58.4]} 6. Nf3 {[%clk 0:03:03.3]} 6... d6 {[%clk 0:02:58.6]}
7. Bc4 {[%clk 0:03:03.8]} 7... Nb6 {[%clk 0:02:59.5]} 8. Bb5 {[%clk 0:03:04.8]}
8... dxe5 {[%clk 0:02:59.1]} 9. Nxe5 {[%clk 0:03:06.7]} 9... Bd7 {[%clk
0:02:55.3]} 10. Bxc6 {[%clk 0:03:07.6]} 10... bxc6 {[%clk 0:02:52]} 11. Qf3
{[%clk 0:03:07.7]} 11... Be6 {[%clk 0:02:34.1]} 12. Qxc6+ {[%clk 0:02:51.3]}
12... Nd7 {[%clk 0:02:33.4]} 13. Nc3 {[%clk 0:02:50.3]} 13... Rc8 {[%clk
0:02:18.2]} 14. Qa4 {[%clk 0:02:49.9]} 14... f6 {[%clk 0:02:15.6]} 15. Nxd7
{[%clk 0:02:45.7]} 15... Qxd7 {[%clk 0:02:14.7]} 16. Qxd7+ {[%clk 0:02:43.5]}
16... Kxd7 {[%clk 0:02:15.8]} 17. Bf4 {[%clk 0:02:42.3]} 17... g5 {[%clk
0:02:13.7]} 18. Bg3 {[%clk 0:02:42.6]} 18... Bg7 {[%clk 0:02:13.5]} 19. O-O
{[%clk 0:02:40.3]} 19... f5 {[%clk 0:02:11.8]} 20. Be5 {[%clk 0:02:36.3]} 20...
Rhg8 {[%clk 0:02:03.5]} 21. Bxg7 {[%clk 0:02:32.8]} 21... Rxg7 {[%clk 0:02:04]}
22. d5 {[%clk 0:02:34.1]} 22... Bf7 {[%clk 0:02:04.3]} 23. Rfe1 {[%clk 0:02:35]}
23... Rg6 {[%clk 0:01:59.8]} 24. Re5 {[%clk 0:02:33.8]} 24... f4 {[%clk
0:01:54.9]} 25. Rae1 {[%clk 0:02:33.3]} 25... e6 {[%clk 0:01:53.6]} 26. dxe6+
{[%clk 0:02:31.9]} 26... Bxe6 {[%clk 0:01:53.5]} 27. Ne4 {[%clk 0:02:25.9]}
27... h6 {[%clk 0:01:48.7]} 28. Nc5+ {[%clk 0:02:26.3]} 28... Kd6 {[%clk
0:01:42.7]} 29. Nxe6 {[%clk 0:02:20.6]} 29... Re8 {[%clk 0:01:36.6]} 30. Rd5+
{[%clk 0:02:02.5]} 30... Kxd5 {[%clk 0:01:29]} 31. Nc7+ {[%clk 0:02:03.2]} 1-0

[Event "*** Titled Tuesday Blitz"]
[Site "Chess.com"]
[Date "2020.02.04"]
[Round "7"]
[White "LogoCzar"]
[Black "AndrewDGreen"]
[Result "0-1"]
[WhiteElo "2501"]
[BlackElo "2265"]
[TimeControl "180+2"]
[EndTime "14:29:10 PST"]
[Termination "AndrewDGreen won by resignation"]

1. e4 {[%clk 0:03:01.9]} 1... c5 {[%clk 0:03:00.7]} 2. Nf3 {[%clk 0:03:02.5]}
2... g6 {[%clk 0:03:01.3]} 3. d4 {[%clk 0:03:02.7]} 3... cxd4 {[%clk 0:03:03.2]}
4. Nxd4 {[%clk 0:03:03.8]} 4... Nc6 {[%clk 0:03:04.2]} 5. c4 {[%clk 0:03:04.5]}
5... Nf6 {[%clk 0:03:04.7]} 6. Nc3 {[%clk 0:03:05.4]} 6... Nxd4 {[%clk
0:03:05.9]} 7. Qxd4 {[%clk 0:03:06.9]} 7... d6 {[%clk 0:03:07.5]} 8. Be2 {[%clk
0:03:08.1]} 8... Bg7 {[%clk 0:03:08.8]} 9. Bg5 {[%clk 0:03:09.5]} 9... O-O
{[%clk 0:03:10.1]} 10. Qd2 {[%clk 0:03:11]} 10... a5 {[%clk 0:03:10.2]} 11. Rc1
{[%clk 0:03:07.3]} 11... a4 {[%clk 0:03:07.5]} 12. O-O {[%clk 0:03:03.3]} 12...
Qa5 {[%clk 0:03:07.2]} 13. f4 {[%clk 0:03:03.8]} 13... Be6 {[%clk 0:02:44.7]}
14. Kh1 {[%clk 0:03:01.5]} 14... Rfc8 {[%clk 0:02:39.3]} 15. f5 {[%clk
0:03:02.3]} 15... Bxc4 {[%clk 0:02:35.1]} 16. Bxc4 {[%clk 0:02:54.4]} 16... Rxc4
{[%clk 0:02:37]} 17. fxg6 {[%clk 0:02:46.7]} 17... hxg6 {[%clk 0:02:33.5]} 18.
Bxf6 {[%clk 0:02:47]} 18... Bxf6 {[%clk 0:02:27.6]} 19. Rxf6 {[%clk 0:02:47.4]}
19... exf6 {[%clk 0:02:25.9]} 20. Qxd6 {[%clk 0:02:46]} 20... Qe5 {[%clk
0:02:10]} 21. Qd2 {[%clk 0:02:44.3]} 21... Rac8 {[%clk 0:01:51.1]} 22. Rf1
{[%clk 0:02:44.3]} 22... a3 {[%clk 0:01:42.2]} 23. Nd5 {[%clk 0:02:42.7]} 23...
axb2 {[%clk 0:01:30.8]} 24. Nb6 {[%clk 0:01:55.5]} 24... Rc1 {[%clk 0:01:28.2]}
0-1

[Event "*** Titled Tuesday Blitz"]
[Site "Chess.com"]
[Date "2020.02.04"]
[Round "7"]
[White "Terao90"]
[Black "FearNoEvil12"]
[Result "1-0"]
[WhiteElo "2424"]
[BlackElo "2046"]
[TimeControl "180+2"]
[EndTime "14:29:17 PST"]
[Termination "Terao90 won by resignation"]

1. e4 {[%clk 0:02:56.9]} 1... a6 {[%clk 0:02:59.3]} 2. d4 {[%clk 0:02:58.1]}
2... b5 {[%clk 0:03:00.7]} 3. Nc3 {[%clk 0:02:57.7]} 3... Bb7 {[%clk 0:03:01.9]}
4. Bd3 {[%clk 0:02:56.4]} 4... e6 {[%clk 0:02:59.9]} 5. Nf3 {[%clk 0:02:55.4]}
5... Nf6 {[%clk 0:03:01.4]} 6. e5 {[%clk 0:02:54.7]} 6... Nd5 {[%clk 0:03:01.8]}
7. O-O {[%clk 0:02:50.9]} 7... h6 {[%clk 0:03:01.7]} 8. Re1 {[%clk 0:02:48.2]}
8... g5 {[%clk 0:03:01.6]} 9. Ne4 {[%clk 0:02:48.3]} 9... Be7 {[%clk 0:02:59]}
10. c3 {[%clk 0:02:47.5]} 10... d6 {[%clk 0:02:58.8]} 11. a4 {[%clk 0:02:42.7]}
11... bxa4 {[%clk 0:02:49.8]} 12. Qxa4+ {[%clk 0:02:41.3]} 12... Nd7 {[%clk
0:02:51.2]} 13. h3 {[%clk 0:02:34.2]} 13... Rg8 {[%clk 0:02:28.3]} 14. c4 {[%clk
0:01:36.1]} 14... Nb6 {[%clk 0:02:22.1]} 15. Qc2 {[%clk 0:01:35.8]} 15... h5
{[%clk 0:02:22]} 16. c5 {[%clk 0:01:24.7]} 16... dxc5 {[%clk 0:02:21.8]} 17.
dxc5 {[%clk 0:01:25.2]} 17... Bxe4 {[%clk 0:02:21.4]} 18. Bxe4 {[%clk
0:01:24.1]} 18... Nd5 {[%clk 0:02:22.2]} 19. Bxd5 {[%clk 0:01:21.5]} 19... exd5
{[%clk 0:02:22.5]} 20. e6 {[%clk 0:01:12.2]} 20... fxe6 {[%clk 0:02:18.3]} 21.
Rxe6 {[%clk 0:01:11.9]} 21... Nf8 {[%clk 0:02:16.3]} 22. Re2 {[%clk 0:01:09.4]}
22... Qd7 {[%clk 0:02:15.1]} 23. Bxg5 {[%clk 0:01:07.2]} 23... Rxg5 {[%clk
0:02:00.1]} 24. Nxg5 {[%clk 0:01:07.7]} 24... O-O-O {[%clk 0:02:01.5]} 25. c6
{[%clk 0:01:08]} 25... Qd6 {[%clk 0:01:59.8]} 26. Rxa6 {[%clk 0:01:02.8]} 1-0

[Event "*** Titled Tuesday Blitz"]
[Site "Chess.com"]
[Date "2020.02.04"]
[Round "7"]
[White "Witik"]
[Black "HanSchut"]
[Result "1-0"]
[WhiteElo "2589"]
[BlackElo "2330"]
[TimeControl "180+2"]
[EndTime "14:29:27 PST"]
[Termination "Witik won by resignation"]

1. g4 {[%clk 0:02:59.7]} 1... d5 {[%clk 0:02:58.9]} 2. Bg2 {[%clk 0:03:00.4]}
2... c6 {[%clk 0:02:39.3]} 3. g5 {[%clk 0:03:01.1]} 3... e5 {[%clk 0:02:39.1]}
4. d4 {[%clk 0:03:01.9]} 4... exd4 {[%clk 0:02:33.5]} 5. Qxd4 {[%clk 0:03:02.3]}
5... Nd7 {[%clk 0:02:27]} 6. c4 {[%clk 0:02:57.2]} 6... dxc4 {[%clk 0:02:11.9]}
7. Nc3 {[%clk 0:02:47.7]} 7... Ne7 {[%clk 0:02:01.3]} 8. Nf3 {[%clk 0:02:29.6]}
8... Nb6 {[%clk 0:01:47.1]} 9. Qxd8+ {[%clk 0:02:27.5]} 9... Kxd8 {[%clk
0:01:48]} 10. Bf4 {[%clk 0:02:09.7]} 10... Ned5 {[%clk 0:01:41.5]} 11. O-O-O
{[%clk 0:02:09.4]} 11... Ke8 {[%clk 0:01:39.3]} 12. Be5 {[%clk 0:01:14.2]} 12...
Nxc3 {[%clk 0:01:28.8]} 13. Bxc3 {[%clk 0:01:14]} 13... Nd5 {[%clk 0:01:23.8]}
14. Bd2 {[%clk 0:00:59.6]} 14... Bf5 {[%clk 0:01:12.2]} 15. Nd4 {[%clk
0:00:59.3]} 15... c3 {[%clk 0:01:13.1]} 16. Nxf5 {[%clk 0:00:52.1]} 16... c2
{[%clk 0:01:13.9]} 17. Kxc2 {[%clk 0:00:50.7]} 1-0

[Event "*** Titled Tuesday Blitz"]
[Site "Chess.com"]
[Date "2020.02.04"]
[Round "7"]
[White "HashtagChess"]
[Black "Eloist"]
[Result "0-1"]
[WhiteElo "1619"]
[BlackElo "2234"]
[TimeControl "180+2"]
[EndTime "14:30:10 PST"]
[Termination "Eloist won by resignation"]

1. e4 {[%clk 0:02:54.8]} 1... e6 {[%clk 0:02:54.1]} 2. Nf3 {[%clk 0:02:52.9]}
2... d5 {[%clk 0:02:54]} 3. Nc3 {[%clk 0:02:52.2]} 3... Nf6 {[%clk 0:02:54.2]}
4. e5 {[%clk 0:02:50.7]} 4... Nfd7 {[%clk 0:02:55.1]} 5. d4 {[%clk 0:02:51.5]}
5... c5 {[%clk 0:02:56.1]} 6. dxc5 {[%clk 0:02:51.2]} 6... Nc6 {[%clk 0:02:57]}
7. Bf4 {[%clk 0:02:50.9]} 7... Bxc5 {[%clk 0:02:57.1]} 8. Bd3 {[%clk 0:02:51.7]}
8... f6 {[%clk 0:02:57.9]} 9. Qe2 {[%clk 0:02:31.1]} 9... fxe5 {[%clk
0:02:36.3]} 10. Bxe5 {[%clk 0:02:25.6]} 10... Ndxe5 {[%clk 0:02:36.1]} 11. Nxe5
{[%clk 0:02:26.5]} 11... Nxe5 {[%clk 0:02:31.5]} 12. Qxe5 {[%clk 0:02:28.4]}
12... O-O {[%clk 0:02:28.8]} 13. O-O {[%clk 0:02:02.5]} 13... Qf6 {[%clk
0:02:20.2]} 14. Qg3 {[%clk 0:01:48.8]} 14... Bd7 {[%clk 0:02:15.3]} 15. a3
{[%clk 0:01:37.9]} 15... Qf4 {[%clk 0:02:12.2]} 16. Qxf4 {[%clk 0:01:13.5]}
16... Rxf4 {[%clk 0:02:11.4]} 17. Rae1 {[%clk 0:01:02.3]} 17... Raf8 {[%clk
0:02:10.6]} 18. Nd1 {[%clk 0:01:03.3]} 18... a6 {[%clk 0:01:56.4]} 19. b4 {[%clk
0:00:55.6]} 19... Bd6 {[%clk 0:01:55.9]} 20. g3 {[%clk 0:00:49.1]} 20... Rf3
{[%clk 0:01:55.4]} 21. Be2 {[%clk 0:00:43.5]} 21... Rxa3 {[%clk 0:01:53.9]} 22.
c3 {[%clk 0:00:42.4]} 22... d4 {[%clk 0:01:49.9]} 23. cxd4 {[%clk 0:00:39.7]}
23... Bxb4 {[%clk 0:01:50.2]} 24. Bg4 {[%clk 0:00:36.3]} 24... Bxe1 {[%clk
0:01:49.9]} 25. Rxe1 {[%clk 0:00:38.2]} 25... Re8 {[%clk 0:01:40.7]} 0-1

[Event "*** Titled Tuesday Blitz"]
[Site "Chess.com"]
[Date "2020.02.04"]
[Round "7"]
[White "cukus"]
[Black "vladimirdamjanovic"]
[Result "0-1"]
[WhiteElo "2471"]
[BlackElo "2623"]
[TimeControl "180+2"]
[EndTime "14:30:17 PST"]
[Termination "vladimirdamjanovic won on time"]

1. e4 {[%clk 0:02:57.1]} 1... c6 {[%clk 0:03:01.3]} 2. d4 {[%clk 0:02:57.9]}
2... d5 {[%clk 0:03:02.2]} 3. e5 {[%clk 0:02:54.4]} 3... Bf5 {[%clk 0:03:02.9]}
4. Nf3 {[%clk 0:02:49.5]} 4... e6 {[%clk 0:03:04.3]} 5. Be2 {[%clk 0:02:50.6]}
5... Be7 {[%clk 0:03:05.1]} 6. O-O {[%clk 0:02:51.7]} 6... h5 {[%clk 0:03:06.6]}
7. a4 {[%clk 0:02:49.3]} 7... g5 {[%clk 0:03:00.4]} 8. a5 {[%clk 0:02:47.8]}
8... a6 {[%clk 0:03:00.9]} 9. Ne1 {[%clk 0:02:47.7]} 9... Bg6 {[%clk 0:03:00.6]}
10. Bd3 {[%clk 0:02:28.9]} 10... Bxd3 {[%clk 0:02:56.2]} 11. Nxd3 {[%clk
0:02:30.8]} 11... Nd7 {[%clk 0:02:44]} 12. Be3 {[%clk 0:02:07.7]} 12... Nf8
{[%clk 0:02:41.4]} 13. Nd2 {[%clk 0:02:03.4]} 13... Ng6 {[%clk 0:02:37.6]} 14.
c4 {[%clk 0:01:59.8]} 14... h4 {[%clk 0:02:34.5]} 15. Qb3 {[%clk 0:01:37.7]}
15... Rb8 {[%clk 0:02:32.4]} 16. Nb4 {[%clk 0:01:03.1]} 16... Nh6 {[%clk
0:02:28.2]} 17. Rfc1 {[%clk 0:00:57.6]} 17... Nf5 {[%clk 0:02:26.4]} 18. cxd5
{[%clk 0:00:50]} 18... cxd5 {[%clk 0:02:18.7]} 19. Rc2 {[%clk 0:00:48.3]} 19...
g4 {[%clk 0:02:13.7]} 20. Rac1 {[%clk 0:00:33.2]} 20... g3 {[%clk 0:02:03.8]}
21. fxg3 {[%clk 0:00:21.3]} 21... Nxe3 {[%clk 0:01:55.8]} 22. h3 {[%clk
0:00:23.2]} 22... Nxc2 {[%clk 0:01:55.5]} 23. Rxc2 {[%clk 0:00:17.9]} 23... O-O
{[%clk 0:01:47]} 24. gxh4 {[%clk 0:00:14.8]} 24... Qxa5 {[%clk 0:01:42.5]} 0-1

[Event "*** Titled Tuesday Blitz"]
[Site "Chess.com"]
[Date "2020.02.04"]
[Round "7"]
[White "King_of_the_wing"]
[Black "zurzan"]
[Result "1-0"]
[WhiteElo "2037"]
[BlackElo "1942"]
[TimeControl "180+2"]
[EndTime "14:30:26 PST"]
[Termination "King_of_the_wing won by resignation"]

1. e4 {[%clk 0:03:01.9]} 1... Nf6 {[%clk 0:02:59.8]} 2. e5 {[%clk 0:03:02]} 2...
Nd5 {[%clk 0:03:00.8]} 3. d4 {[%clk 0:03:02.5]} 3... d6 {[%clk 0:03:02]} 4. Nf3
{[%clk 0:03:00.7]} 4... g6 {[%clk 0:03:01.4]} 5. Bc4 {[%clk 0:02:53.3]} 5... Nb6
{[%clk 0:03:01.7]} 6. Bb3 {[%clk 0:02:53.1]} 6... Bg7 {[%clk 0:03:02.7]} 7. Qe2
{[%clk 0:02:48.4]} 7... O-O {[%clk 0:03:02.2]} 8. h3 {[%clk 0:02:45.4]} 8... Nc6
{[%clk 0:02:56.2]} 9. O-O {[%clk 0:02:39.4]} 9... dxe5 {[%clk 0:02:55.2]} 10.
dxe5 {[%clk 0:02:39.1]} 10... Nd4 {[%clk 0:02:39.7]} 11. Nxd4 {[%clk 0:02:37.5]}
11... Qxd4 {[%clk 0:02:40.5]} 12. e6 {[%clk 0:02:30.6]} 12... f5 {[%clk
0:02:15.5]} 13. Nc3 {[%clk 0:02:26.8]} 13... c6 {[%clk 0:02:06.3]} 14. Bg5
{[%clk 0:02:25.8]} 14... Bf6 {[%clk 0:01:59.9]} 15. Rad1 {[%clk 0:02:25.9]}
15... Qc5 {[%clk 0:01:37.1]} 16. Bxf6 {[%clk 0:02:20.9]} 16... Rxf6 {[%clk
0:01:37.4]} 17. Rd8+ {[%clk 0:02:21.8]} 17... Kg7 {[%clk 0:01:37.1]} 18. Rfd1
{[%clk 0:02:08.9]} 18... a5 {[%clk 0:01:12.9]} 19. a4 {[%clk 0:01:57.8]} 19...
Rf8 {[%clk 0:00:31]} 20. Rxf8 {[%clk 0:01:39.9]} 20... Kxf8 {[%clk 0:00:32.9]}
21. Rd8+ {[%clk 0:01:41.1]} 21... Kg7 {[%clk 0:00:34.5]} 22. Qd2 {[%clk
0:01:29]} 22... Qe5 {[%clk 0:00:33.3]} 23. Re8 {[%clk 0:01:20.6]} 23... Bxe6
{[%clk 0:00:33.2]} 24. Rxe7+ {[%clk 0:01:20.5]} 24... Kf6 {[%clk 0:00:34.8]} 25.
Rxe6+ {[%clk 0:01:21.4]} 25... Qxe6 {[%clk 0:00:36.2]} 26. Bxe6 {[%clk
0:01:22.6]} 26... Kxe6 {[%clk 0:00:38.1]} 27. Qe3+ {[%clk 0:01:23.8]} 1-0

[Event "*** Titled Tuesday Blitz"]
[Site "Chess.com"]
[Date "2020.02.04"]
[Round "7"]
[White "karinachess1"]
[Black "lilleper1"]
[Result "0-1"]
[WhiteElo "2486"]
[BlackElo "2675"]
[TimeControl "180+2"]
[EndTime "14:30:39 PST"]
[Termination "lilleper1 won on time"]

1. Nf3 {[%clk 0:03:01.9]} 1... c5 {[%clk 0:02:56.1]} 2. c4 {[%clk 0:03:01.5]}
2... Nc6 {[%clk 0:02:56.8]} 3. d4 {[%clk 0:02:58]} 3... cxd4 {[%clk 0:02:57.4]}
4. Nxd4 {[%clk 0:02:59.9]} 4... e5 {[%clk 0:02:58.7]} 5. Nb5 {[%clk 0:02:52]}
5... Nf6 {[%clk 0:02:59.6]} 6. N1c3 {[%clk 0:02:43]} 6... Bb4 {[%clk 0:02:57.4]}
7. a3 {[%clk 0:02:40.8]} 7... Bxc3+ {[%clk 0:02:57.7]} 8. Nxc3 {[%clk
0:02:42.7]} 8... O-O {[%clk 0:02:58.6]} 9. Bg5 {[%clk 0:02:32.5]} 9... h6 {[%clk
0:02:56.4]} 10. Bh4 {[%clk 0:02:33.4]} 10... g5 {[%clk 0:02:50.1]} 11. Bg3
{[%clk 0:02:34.3]} 11... d6 {[%clk 0:02:51.6]} 12. e3 {[%clk 0:02:24.4]} 12...
Bf5 {[%clk 0:02:51.6]} 13. Be2 {[%clk 0:02:23]} 13... Qd7 {[%clk 0:02:52.5]} 14.
h4 {[%clk 0:02:17.2]} 14... g4 {[%clk 0:02:52.9]} 15. h5 {[%clk 0:02:14.5]}
15... Rad8 {[%clk 0:02:50.1]} 16. Bh4 {[%clk 0:02:13.7]} 16... Qe6 {[%clk
0:02:47.6]} 17. Nd5 {[%clk 0:02:10.9]} 17... Ne4 {[%clk 0:02:36.1]} 18. Bxd8
{[%clk 0:02:04.2]} 18... Rxd8 {[%clk 0:02:38]} 19. g3 {[%clk 0:01:41.1]} 19...
Ng5 {[%clk 0:02:37.7]} 20. Rh4 {[%clk 0:01:39.8]} 20... e4 {[%clk 0:02:28.6]}
21. Bxg4 {[%clk 0:01:15.9]} 21... Bxg4 {[%clk 0:02:28.6]} 22. Rxg4 {[%clk
0:01:01.5]} 22... Ne5 {[%clk 0:02:28]} 23. Rf4 {[%clk 0:00:39.9]} 23... Nd3+
{[%clk 0:02:25.9]} 24. Kd2 {[%clk 0:00:38.8]} 24... Nxf4 {[%clk 0:02:24.1]} 25.
gxf4 {[%clk 0:00:40.7]} 25... Nf3+ {[%clk 0:02:24.6]} 26. Kc2 {[%clk 0:00:41.4]}
26... Rc8 {[%clk 0:02:25.4]} 27. b3 {[%clk 0:00:38.7]} 27... b5 {[%clk 0:02:26]}
28. Nc3 {[%clk 0:00:18]} 28... bxc4 {[%clk 0:02:25.7]} 29. b4 {[%clk 0:00:19.1]}
29... Kh7 {[%clk 0:02:19.3]} 30. Qh1 {[%clk 0:00:20]} 30... Rg8 {[%clk 0:02:19]}
31. Rd1 {[%clk 0:00:20.4]} 31... a5 {[%clk 0:02:16]} 32. f5 {[%clk 0:00:20.2]}
32... Qxf5 {[%clk 0:02:12.3]} 33. Rxd6 {[%clk 0:00:21.1]} 33... Rg1 {[%clk
0:02:08]} 34. Rd5 {[%clk 0:00:14]} 34... Qe6 {[%clk 0:02:04.4]} 0-1